fUSD/lending_fUSD_20251215
["ID","MTS","AMOUNT","RATE_DAILY","PERIOD"]
[398537992,1765810243330,-300.0,0.00017302,2]
[398537993,1765810243339,-300.0,0.00017302,2]
[398537994,1765810243348,-300.0,0.00017302,2]
[398537995,1765810243357,-195.0,0.00017302,2]
[398537996,1765810243367,-300.0,0.00017302,2]
[398537997,1765810243376,-250.0,0.00017302,2]
[398537998,1765810243385,-194.66731831,0.00017302,2]
[398537999,1765810243396,-200.0,0.00017342,2]
[398538000,1765810243405,-200.0,0.00017342,2]
[398538001,1765810243415,-200.0,0.00017342,2]
[398538002,1765810243424,-200.0,0.00017342,2]
[398538003,1765810243435,-168.0,0.00017381,2]
[398538004,1765810243444,-998.0,0.00017382,2]
[398538005,1765810243454,-500.0,0.00017384,2]
[398538006,1765810243463,-209.988155,0.00017384,2]
[398538007,1765810243472,-500.0,0.00017384,2]
[398538008,1765810243905,-576.0,0.00017384,2]
[398538009,1765810243938,-500.0,0.00017384,2]
[398538010,1765810243950,-500.0,0.00017384,2]
[398538011,1765810243959,-500.0,0.00017384,2]
[398538012,1765810243970,-558.0,0.00017384,2]
[398538013,1765810243980,-150.0,0.00017404,2]
[398538014,1765810243989,-882.60614022,0.00017406,2]
[398538015,1765810243998,-168.0,0.00017442,2]
[398538016,1765810244007,-223.2909665,0.00017459,2]
[398538017,1765810244017,-150.0,0.00017467,2]
[398538018,1765810244026,-168.0,0.00017476,2]
[398538019,1765810244035,-256.4,0.00017477,2]
[398538020,1765810244045,-168.0,0.00017485,2]
[398538021,1765810244055,-13468.95550883,0.000175,2]
[398538022,1765810244064,-500.0,0.00017507,2]
[398538023,1765810244073,-168.0,0.00017508,2]
[398538024,1765810244083,-150.0,0.0001751,2]
[398538025,1765810244092,-168.0,0.00017513,2]
[398538026,1765810244101,-200.0,0.00017515,2]
[398538027,1765810244111,-200.0,0.00017515,2]
[398538028,1765810244120,-200.0,0.00017515,2]
[398538029,1765810244129,-200.0,0.00017515,2]
[398538030,1765810244139,-500.0,0.00017521,2]
[398538031,1765810244149,-500.0,0.00017521,2]
[398538032,1765810244161,-576.0,0.00017521,2]
[398538033,1765810244171,-500.0,0.00017521,2]
[398538034,1765810244183,-500.0,0.00017521,2]
[398538035,1765810244192,-500.0,0.00017521,2]
[398538036,1765810244202,-558.0,0.00017521,2]
[398538037,1765810244212,-6727.0,0.00017527,2]
[398538038,1765810244221,-631.28,0.00017547,4]
[398538039,1765810244231,-1266.2,0.00017548,2]
[398538040,1765810244241,-150.0,0.00017562,2]
[398538041,1765810244251,-162.22892314,0.00017567,2]
[398538042,1765810244261,-1421.98892889,0.00017622,2]
[398538043,1765810244271,-168.0,0.00017645,2]
[398538044,1765810244280,-168.0,0.0001765,2]
[398538045,1765810244290,-500.0,0.00017658,2]
[398538046,1765810244300,-500.0,0.00017658,2]
[398538047,1765810244309,-576.0,0.00017658,2]
[398538048,1765810244318,-500.0,0.00017658,2]
[398538049,1765810244328,-500.0,0.00017658,2]
[398538050,1765810244337,-500.0,0.00017658,2]
[398538051,1765810244347,-558.0,0.00017658,2]
[398538052,1765810244356,-168.0,0.00017683,2]
[398538053,1765810244366,-200.0,0.0001769,2]
[398538054,1765810244375,-200.0,0.0001769,2]
[398538055,1765810244384,-200.0,0.0001769,2]
[398538056,1765810244395,-200.0,0.0001769,2]
[398538057,1765810244404,-1000.0,0.000177,2]
[398538058,1765810244414,-882.60614022,0.00017705,2]
[398538059,1765810244424,-150.0,0.00017721,2]
[398538060,1765810244435,-150.0,0.00017721,2]
[398538061,1765810244444,-150.0,0.00017721,2]
[398538062,1765810244454,-13468.95550883,0.00017733,2]
[398538063,1765810244463,-168.0,0.00017754,2]
[398538064,1765810244473,-168.0,0.00017793,2]
[398538065,1765810244483,-516.01659576,0.00017795,2]
[398538066,1765810244494,-500.0,0.00017795,2]
[398538067,1765810244504,-576.0,0.00017795,2]
[398538068,1765810244514,-500.0,0.00017795,2]
[398538069,1765810244524,-500.0,0.00017795,2]
[398538070,1765810244533,-500.0,0.00017795,2]
[398538071,1765810244543,-558.0,0.00017795,2]
[398538072,1765810244553,-500.0,0.00017808,2]
[398538073,1765810244562,-631.28,0.00017821,5]
[398538074,1765810244572,-1266.2,0.00017822,2]
[398538075,1765810244582,-200.0,0.00017847,2]
[398538076,1765810244593,-150.0,0.00017847,2]
[398538077,1765810244603,-75524.163106,0.00017864,2]
[398538078,1765810244613,-152.0,0.00017881,2]
[398538079,1765810244623,-834.0,0.00017881,2]
[398538080,1765810244633,-154.0,0.00017881,2]
[398538081,1765810244642,-154.0,0.00017881,2]
[398538082,1765810244652,-154.0,0.00017881,2]
[398538083,1765810244663,-154.0,0.00017881,2]
[398538084,1765810244672,-154.0,0.00017881,2]
[398538085,1765810244684,-154.0,0.00017881,2]
[398538086,1765810244695,-152.0,0.00017881,2]
[398538087,1765810244705,-152.0,0.00017881,2]
[398538088,1765810244714,-152.0,0.00017881,2]
[398538089,1765810244724,-834.0,0.00017881,2]
[398538090,1765810244734,-152.0,0.00017881,2]
[398538091,1765810244744,-1254.0,0.00017881,2]
[398538092,1765810244753,-834.0,0.00017881,2]
[398538093,1765810244763,-152.0,0.00017881,2]
[398538094,1765810244773,-152.0,0.00017881,2]
[398538095,1765810244783,-1254.0,0.00017881,2]
[398538096,1765810244792,-834.0,0.00017881,2]
[398538097,1765810244802,-152.0,0.00017881,2]
[398538098,1765810244812,-152.0,0.00017881,2]
[398538099,1765810244822,-1254.0,0.00017881,2]
[398538100,1765810244832,-834.0,0.00017881,2]
[398538101,1765810244842,-152.0,0.00017881,2]
[398538102,1765810244851,-152.0,0.00017881,2]
[398538103,1765810244862,-1254.0,0.00017881,2]
[398538104,1765810244872,-154.0,0.00017881,2]
[398538105,1765810244881,-154.0,0.00017881,2]
[398538106,1765810244891,-154.0,0.00017881,2]
[398538107,1765810244900,-154.0,0.00017881,2]
[398538108,1765810244910,-152.0,0.00017881,2]
[398538109,1765810244920,-154.0,0.00017881,2]
[398538110,1765810244930,-834.0,0.00017881,2]
[398538111,1765810244944,-152.0,0.00017881,2]
[398538112,1765810244953,-154.0,0.00017881,2]
[398538113,1765810244963,-834.0,0.00017881,2]
[398538114,1765810244972,-1254.0,0.00017881,2]
[398538115,1765810244981,-152.0,0.00017881,2]
[398538116,1765810244992,-154.0,0.00017881,2]
[398538117,1765810245002,-834.0,0.00017881,2]
[398538118,1765810245011,-1254.0,0.00017881,2]
[398538119,1765810245022,-152.0,0.00017881,2]
[398538120,1765810245032,-154.0,0.00017881,2]
[398538121,1765810245041,-1254.0,0.00017881,2]
[398538122,1765810245051,-152.0,0.00017881,2]
[398538123,1765810245060,-834.0,0.00017881,2]
[398538124,1765810245070,-1254.0,0.00017881,2]
[398538125,1765810245079,-834.0,0.00017881,2]
[398538126,1765810245089,-152.0,0.00017881,2]
[398538127,1765810245099,-1254.0,0.00017881,2]
[398538128,1765810245109,-834.0,0.00017881,2]
[398538129,1765810245118,-152.0,0.00017881,2]
[398538130,1765810245128,-1254.0,0.00017881,2]
[398538131,1765810245138,-834.0,0.00017881,2]
[398538132,1765810245149,-152.0,0.00017881,2]
[398538133,1765810245159,-1254.0,0.00017881,2]
[398538134,1765810245169,-834.0,0.00017881,2]
[398538135,1765810245178,-152.0,0.00017881,2]
[398538136,1765810245191,-1254.0,0.00017881,2]
[398538137,1765810245201,-152.0,0.00017881,2]
[398538138,1765810245210,-1254.0,0.00017881,2]
[398538139,1765810245219,-152.0,0.00017881,2]
[398538140,1765810245229,-1254.0,0.00017881,2]
[398538141,1765810245240,-152.0,0.00017881,2]
[398538142,1765810245250,-1254.0,0.00017881,2]
[398538143,1765810245259,-152.0,0.00017881,2]
[398538144,1765810245268,-152.0,0.00017881,2]
[398538145,1765810245278,-834.0,0.00017881,2]
[398538146,1765810245287,-1254.0,0.00017881,2]
[398538147,1765810245296,-1254.0,0.00017881,2]
[398538148,1765810245306,-834.0,0.00017881,2]
[398538149,1765810245315,-1254.0,0.00017881,2]
[398538150,1765810245324,-834.0,0.00017881,2]
[398538151,1765810245334,-1254.0,0.00017881,2]
[398538152,1765810245343,-1254.0,0.00017881,2]
[398538153,1765810245353,-834.0,0.00017881,2]
[398538154,1765810245362,-152.0,0.00017881,2]
[398538155,1765810245371,-1254.0,0.00017881,2]
[398538156,1765810245381,-152.0,0.00017881,2]
[398538157,1765810245390,-468.69097091,0.00017881,2]
[398538158,1765810245399,-1254.0,0.00017881,2]
[398538159,1765810245409,-152.0,0.00017881,2]
[398538160,1765810245418,-152.0,0.00017881,2]
[398538161,1765810245428,-1254.0,0.00017881,2]
[398538162,1765810245439,-152.0,0.00017881,2]
[398538163,1765810245449,-152.0,0.00017881,2]
[398538164,1765810245458,-1254.0,0.00017881,2]
[398538165,1765810245467,-152.0,0.00017881,2]
[398538166,1765810245477,-152.0,0.00017881,2]
[398538167,1765810245488,-1254.0,0.00017881,2]
[398538168,1765810245497,-152.0,0.00017881,2]
[398538169,1765810245508,-152.0,0.00017881,2]
[398538170,1765810245518,-1254.0,0.00017881,2]
[398538171,1765810245528,-152.0,0.00017881,2]
[398538172,1765810245539,-152.0,0.00017881,2]
[398538173,1765810245550,-1254.0,0.00017881,2]
[398538174,1765810245564,-152.0,0.00017881,2]
[398538175,1765810245573,-152.0,0.00017881,2]
[398538176,1765810245583,-1254.0,0.00017881,2]
[398538177,1765810245593,-152.0,0.00017881,2]
[398538178,1765810245603,-152.0,0.00017881,2]
[398538179,1765810245613,-1254.0,0.00017881,2]
[398538180,1765810245622,-152.0,0.00017881,2]
[398538181,1765810245632,-280.10535977,0.00017881,2]
[398538182,1765810245642,-1254.0,0.00017881,2]
[398538183,1765810245653,-152.0,0.00017881,2]
[398538184,1765810245663,-1254.0,0.00017881,2]
[398538185,1765810245672,-152.0,0.00017881,2]
[398538186,1765810245682,-1254.0,0.00017881,2]
[398538187,1765810245694,-152.0,0.00017881,2]
[398538188,1765810245703,-1254.0,0.00017881,2]
[398538189,1765810245712,-252.38965128,0.00017881,2]
[398538190,1765810245722,-1254.0,0.00017881,2]
[398538191,1765810245731,-1254.0,0.00017881,2]
[398538192,1765810245740,-1254.0,0.00017881,2]
[398538193,1765810245750,-1254.0,0.00017881,2]
[398538194,1765810245759,-152.0,0.00017881,2]
[398538195,1765810245768,-1254.0,0.00017881,2]
[398538196,1765810245778,-1254.0,0.00017881,2]
[398538197,1765810245787,-1254.0,0.00017881,2]
[398538198,1765810245797,-152.0,0.00017881,2]
[398538199,1765810245806,-1254.0,0.00017881,2]
[398538200,1765810245816,-152.0,0.00017881,2]
[398538201,1765810245826,-1254.0,0.00017881,2]
[398538202,1765810245836,-152.0,0.00017881,2]
[398538203,1765810245846,-1254.0,0.00017881,2]
[398538204,1765810245856,-152.0,0.00017881,2]
[398538205,1765810245865,-164.22646165,0.00017881,2]
[398538206,1765810245875,-1254.0,0.00017881,2]
[398538207,1765810245885,-152.0,0.00017881,2]
[398538208,1765810245895,-1254.0,0.00017881,2]
[398538209,1765810245905,-152.0,0.00017881,2]
[398538210,1765810245914,-1254.0,0.00017881,2]
[398538211,1765810245924,-152.0,0.00017881,2]
[398538212,1765810245933,-152.0,0.00017881,2]
[398538213,1765810245943,-152.0,0.00017881,2]
[398538214,1765810245953,-152.0,0.00017881,2]
[398538215,1765810245963,-152.0,0.00017881,2]
[398538216,1765810245975,-152.0,0.00017881,2]
[398538217,1765810245986,-152.0,0.00017881,2]
[398538218,1765810245996,-152.0,0.00017881,2]
[398538219,1765810246005,-152.0,0.00017881,2]
[398538220,1765810246015,-152.0,0.00017881,2]
[398538221,1765810246024,-152.0,0.00017881,2]
[398538222,1765810246033,-152.0,0.00017881,2]
[398538223,1765810246042,-152.0,0.00017881,2]
[398538224,1765810246052,-152.0,0.00017881,2]
[398538225,1765810246061,-152.0,0.00017881,2]
[398538226,1765810246070,-152.0,0.00017881,2]
[398538227,1765810246080,-152.0,0.00017881,2]
[398538228,1765810246091,-1254.0,0.00017881,2]
[398538229,1765810246101,-152.0,0.00017881,2]
[398538230,1765810246111,-1254.0,0.00017881,2]
[398538231,1765810246122,-152.0,0.00017881,2]
[398538232,1765810246131,-1254.0,0.00017881,2]
[398538233,1765810246141,-152.0,0.00017881,2]
[398538234,1765810246150,-1254.0,0.00017881,2]
[398538235,1765810246163,-152.0,0.00017881,2]
[398538236,1765810246173,-1254.0,0.00017881,2]
[398538237,1765810246182,-152.0,0.00017881,2]
[398538238,1765810246193,-1254.0,0.00017881,2]
[398538239,1765810246202,-152.0,0.00017881,2]
[398538240,1765810246212,-1254.0,0.00017881,2]
[398538241,1765810246221,-287.47929294,0.00017881,2]
[398538242,1765810246230,-1254.0,0.00017881,2]
[398538243,1765810246241,-1254.0,0.00017881,2]
[398538244,1765810246250,-1049.76443861,0.00017881,2]
[398538245,1765810246259,-162.22892314,0.000179,2]
[398538246,1765810246269,-175.40482887,0.000179,2]
[398538247,1765810246278,-168.0,0.00017911,2]
[398538248,1765810246287,-998.0,0.0001793,2]
[398538249,1765810246296,-150.0,0.00017932,2]
[398538250,1765810246306,-500.0,0.00017932,2]
[398538251,1765810246315,-576.0,0.00017932,2]
[398538252,1765810246325,-500.0,0.00017932,2]
[398538253,1765810246335,-500.0,0.00017932,2]
[398538254,1765810246344,-416.35980985,0.00017932,2]
[398538255,1765810246353,-558.0,0.00017932,2]
[398538256,1765810246363,-166.513,0.00017939,2]
[398538257,1765810246372,-2319.672,0.0001794,2]
[398538258,1765810246382,-500.0,0.00017945,2]
[398538259,1765810246391,-13468.95550883,0.00017967,2]
[398538260,1765810246400,-166.66,0.00017974,2]
[398538261,1765810246409,-500.0,0.0001798,2]
[398538262,1765810246419,-532.30126089,0.0001798,2]
[398538263,1765810246428,-500.0,0.0001798,2]
[398538264,1765810246439,-500.0,0.0001798,2]
[398538265,1765810246449,-500.0,0.0001798,2]
[398538266,1765810246458,-500.0,0.0001798,2]
[398538267,1765810246468,-500.0,0.0001798,2]
[398538268,1765810246477,-500.0,0.0001798,2]
[398538269,1765810246486,-500.0,0.0001798,2]
[398538270,1765810246495,-500.0,0.00017981,2]
[398538271,1765810246504,-500.0,0.00017981,2]
[398538272,1765810246513,-3608.41322,0.00017982,2]
[398538273,1765810246522,-170.48,0.00017984,2]
[398538274,1765810246531,-627.7,0.00017997,2]
[398538275,1765810246540,-2000.0,0.00017999,2]
[398538276,1765810246549,-1184.75012873,0.00018,2]
[398538277,1765810246558,-3444.19141667,0.00018,3]
[398538278,1765810246568,-22437.3067324,0.00018,2]
[398538279,1765810246577,-200.516518,0.00018,2]
[398538280,1765810246586,-882.60614022,0.00018004,2]
[398538281,1765810246596,-168.0,0.00018036,2]
[398538282,1765810246605,-150.0,0.00018037,2]
[398538283,1765810246615,-150.0,0.00018037,2]
[398538284,1765810246625,-420.0,0.00018047,2]
[398538285,1765810246635,-420.0,0.00018047,2]
[398538286,1765810246644,-1747.904,0.00018051,2]
[398538287,1765810246655,-1324.0,0.00018051,2]
[398538288,1765810246664,-611.0,0.00018051,2]
[398538289,1765810246674,-1607.0,0.00018051,2]
[398538290,1765810246683,-589.0,0.00018051,2]
[398538291,1765810246694,-1261.0,0.00018051,2]
[398538292,1765810246704,-563.0,0.00018051,2]
[398538293,1765810246718,-5576.989,0.00018051,2]
[398538294,1765810246738,-150.0,0.00018051,2]
[398538295,1765810246750,-151.0,0.00018052,2]
[398538296,1765810246760,-151.0,0.00018052,2]
[398538297,1765810246770,-151.0,0.00018052,2]
[398538298,1765810246780,-151.0,0.00018052,2]
[398538299,1765810246790,-151.0,0.00018052,2]
[398538300,1765810246800,-151.0,0.00018052,2]
[398538301,1765810246809,-287.349578,0.00018052,2]
[398538302,1765810246819,-151.0,0.00018052,2]
[398538303,1765810246829,-300.932669,0.00018052,2]
[398538304,1765810246838,-300.932669,0.00018052,2]
[398538305,1765810246848,-300.932669,0.00018052,2]
[398538306,1765810246858,-300.932669,0.00018052,2]
[398538307,1765810246867,-151.0,0.00018052,2]
[398538308,1765810246877,-152.290121,0.00018052,2]
[398538309,1765810246886,-1198.582147,0.00018052,2]
[398538310,1765810246896,-1198.582147,0.00018052,2]
[398538311,1765810246905,-1198.582147,0.00018052,2]
[398538312,1765810246914,-1198.582147,0.00018052,2]
[398538313,1765810246924,-151.0,0.00018052,2]
[398538314,1765810246933,-151.0,0.00018052,2]
[398538315,1765810246947,-151.0,0.00018052,2]
[398538316,1765810246957,-607.87586,0.00018052,2]
[398538317,1765810246967,-607.87586,0.00018052,2]
[398538318,1765810246977,-607.87586,0.00018052,2]
[398538319,1765810246986,-607.87586,0.00018052,2]
[398538320,1765810246996,-151.0,0.00018052,2]
[398538321,1765810247005,-151.0,0.00018052,2]
[398538322,1765810247015,-162.831919,0.00018052,2]
[398538323,1765810247025,-151.0,0.00018052,2]
[398538324,1765810247035,-1680.0,0.00018054,2]
[398538325,1765810247044,-500.0,0.00018069,2]
[398538326,1765810247054,-576.0,0.00018069,2]
[398538327,1765810247064,-500.0,0.00018069,2]
[398538328,1765810247073,-558.0,0.00018069,2]
[398538329,1765810247083,-500.0,0.00018082,2]
[398538330,1765810247092,-239.850963,0.00018082,2]
[398538331,1765810247102,-151.0,0.00018082,2]
[398538332,1765810247111,-691.499708,0.00018082,2]
[398538333,1765810247121,-691.499708,0.00018082,2]
[398538334,1765810247130,-691.499708,0.00018082,2]
[398538335,1765810247140,-151.0,0.00018082,2]
[398538336,1765810247152,-691.499708,0.00018082,2]
[398538337,1765810247165,-156.365571,0.00018082,2]
[398538338,1765810247175,-262.549947,0.00018082,2]
[398538339,1765810247186,-262.549947,0.00018082,2]
[398538340,1765810247198,-151.0,0.00018082,2]
[398538341,1765810247207,-151.0,0.00018082,2]
[398538342,1765810247216,-151.0,0.00018082,2]
[398538343,1765810247225,-476.25,0.00018082,2]
[398538344,1765810247236,-151.0,0.00018082,2]
[398538345,1765810247246,-476.25,0.00018082,2]
[398538346,1765810247255,-151.0,0.00018082,2]
[398538347,1765810247265,-476.25,0.00018082,2]
[398538348,1765810247274,-151.0,0.00018082,2]
[398538349,1765810247283,-476.25,0.00018082,2]
[398538350,1765810247292,-1083.149669,0.00018082,2]
[398538351,1765810247301,-287.251151,0.00018082,2]
[398538352,1765810247310,-151.0,0.00018082,2]
[398538353,1765810247320,-287.251151,0.00018082,2]
[398538354,1765810247328,-1083.149669,0.00018082,2]
[398538355,1765810247338,-503.562911,0.00018082,2]
[398538356,1765810247348,-201.8112,0.00018082,2]
[398538357,1765810247358,-287.251151,0.00018082,2]
[398538358,1765810247367,-503.562911,0.00018082,2]
[398538359,1765810247376,-1083.149669,0.00018082,2]
[398538360,1765810247385,-287.251151,0.00018082,2]
[398538361,1765810247394,-151.0,0.00018082,2]
[398538362,1765810247403,-503.562911,0.00018082,2]
[398538363,1765810247413,-1083.149669,0.00018082,2]
[398538364,1765810247422,-503.562911,0.00018082,2]
[398538365,1765810247431,-162.958621,0.00018082,2]
[398538366,1765810247443,-151.0,0.00018082,2]
[398538367,1765810247453,-2015.478988,0.00018082,2]
[398538368,1765810247463,-151.0,0.00018082,2]
[398538369,1765810247472,-151.0,0.00018082,2]
[398538370,1765810247482,-2015.478988,0.00018082,2]
[398538371,1765810247491,-590.483127,0.00018082,2]
[398538372,1765810247500,-151.0,0.00018082,2]
[398538373,1765810247509,-151.0,0.00018082,2]
[398538374,1765810247518,-440.006132,0.00018082,2]
[398538375,1765810247528,-2015.478988,0.00018082,2]
[398538376,1765810247537,-590.483127,0.00018082,2]
[398538377,1765810247547,-168.570478,0.00018082,2]
[398538378,1765810247556,-440.006132,0.00018082,2]
[398538379,1765810247565,-2015.478988,0.00018082,2]
[398538380,1765810247575,-590.483127,0.00018082,2]
[398538381,1765810247584,-440.006132,0.00018082,2]
[398538382,1765810247593,-590.483127,0.00018082,2]
[398538383,1765810247603,-440.006132,0.00018082,2]
[398538384,1765810247612,-151.0,0.00018082,2]
[398538385,1765810247622,-151.0,0.00018082,2]
[398538386,1765810247631,-579.909382,0.00018082,2]
[398538387,1765810247640,-189.867253,0.00018082,2]
[398538388,1765810247649,-579.909382,0.00018082,2]
[398538389,1765810247659,-151.0,0.00018082,2]
[398538390,1765810247669,-579.909382,0.00018082,2]
[398538391,1765810247678,-579.909382,0.00018082,2]
[398538392,1765810247693,-311.919169,0.00018082,2]
[398538393,1765810247702,-348.911919,0.00018082,2]
[398538394,1765810247714,-348.911919,0.00018082,2]
[398538395,1765810247723,-348.911919,0.00018082,2]
[398538396,1765810247733,-348.911919,0.00018082,2]
[398538397,1765810247744,-151.0,0.00018082,2]
[398538398,1765810247754,-151.0,0.00018082,2]
[398538399,1765810247764,-153.857671,0.00018082,2]
[398538400,1765810247774,-151.0,0.00018082,2]
[398538401,1765810247785,-157.759869,0.00018082,2]
[398538402,1765810247795,-1072.729984,0.00018082,2]
[398538403,1765810247804,-151.0,0.00018082,2]
[398538404,1765810247815,-1072.729984,0.00018082,2]
[398538405,1765810247829,-151.0,0.00018082,2]
[398538406,1765810247838,-151.0,0.00018082,2]
[398538407,1765810247848,-1072.729984,0.00018082,2]
[398538408,1765810247857,-151.0,0.00018082,2]
[398538409,1765810247866,-151.0,0.00018082,2]
[398538410,1765810247876,-1072.729984,0.00018082,2]
[398538411,1765810247886,-151.0,0.00018082,2]
[398538412,1765810247895,-311.919169,0.00018082,2]
[398538413,1765810247905,-151.0,0.00018082,2]
[398538414,1765810247914,-311.919169,0.00018082,2]
[398538415,1765810247924,-151.0,0.00018082,2]
[398538416,1765810247935,-311.919169,0.00018082,2]
[398538417,1765810247946,-151.0,0.00018082,2]
[398538418,1765810247956,-151.0,0.00018082,2]
[398538419,1765810247966,-151.0,0.00018082,2]
[398538420,1765810247975,-244.499499,0.00018082,2]
[398538421,1765810247985,-153.975539,0.00018082,2]
[398538422,1765810247994,-151.0,0.00018082,2]
[398538423,1765810248005,-158.178778,0.00018082,2]
[398538424,1765810248014,-151.0,0.00018082,2]
[398538425,1765810248024,-151.66148,0.00018082,2]
[398538426,1765810248445,-151.0,0.00018082,2]
[398538427,1765810248455,-151.0,0.00018082,2]
[398538428,1765810248464,-223.22747,0.00018082,2]
[398538429,1765810248474,-151.0,0.00018082,2]
[398538430,1765810248484,-246.171872,0.00018082,2]
[398538431,1765810248493,-151.0,0.00018082,2]
[398538432,1765810248502,-223.22747,0.00018082,2]
[398538433,1765810248510,-151.0,0.00018082,2]
[398538434,1765810248520,-246.171872,0.00018082,2]
[398538435,1765810248529,-223.22747,0.00018082,2]
[398538436,1765810248539,-246.171872,0.00018082,2]
[398538437,1765810248548,-151.0,0.00018082,2]
[398538438,1765810248557,-223.22747,0.00018082,2]
[398538439,1765810248567,-246.171872,0.00018082,2]
[398538440,1765810248576,-151.0,0.00018082,2]
[398538441,1765810248586,-236.067957,0.00018082,2]
[398538442,1765810248595,-151.0,0.00018082,2]
[398538443,1765810248604,-236.067957,0.00018082,2]
[398538444,1765810248614,-236.067957,0.00018082,2]
[398538445,1765810248623,-151.0,0.00018082,2]
[398538446,1765810248634,-236.067957,0.00018082,2]
[398538447,1765810248647,-197.987999,0.00018082,2]
[398538448,1765810248656,-197.987999,0.00018082,2]
[398538449,1765810248665,-197.987999,0.00018082,2]
[398538450,1765810248675,-197.987999,0.00018082,2]
[398538451,1765810248685,-151.405935,0.00018082,2]
[398538452,1765810248696,-151.0,0.00018082,2]
[398538453,1765810248706,-151.0,0.00018082,2]
[398538454,1765810248716,-180.08648,0.00018082,2]
[398538455,1765810248728,-151.0,0.00018082,2]
[398538456,1765810248740,-247.180426,0.00018082,2]
[398538457,1765810248749,-151.0,0.00018082,2]
[398538458,1765810248759,-180.08648,0.00018082,2]
[398538459,1765810248768,-247.180426,0.00018082,2]
[398538460,1765810248778,-180.08648,0.00018082,2]
[398538461,1765810248787,-258.272032,0.00018082,2]
[398538462,1765810248797,-247.180426,0.00018082,2]
[398538463,1765810248806,-180.08648,0.00018082,2]
[398538464,1765810248815,-151.0,0.00018082,2]
[398538465,1765810248825,-247.180426,0.00018082,2]
[398538466,1765810248834,-160.938098,0.00018082,2]
[398538467,1765810248843,-151.0,0.00018082,2]
[398538468,1765810248853,-151.0,0.00018082,2]
[398538469,1765810248863,-326.057867,0.00018082,2]
[398538470,1765810248873,-151.0,0.00018082,2]
[398538471,1765810248882,-677.985224,0.00018082,2]
[398538472,1765810248892,-326.057867,0.00018082,2]
[398538473,1765810248902,-151.0,0.00018082,2]
[398538474,1765810248912,-151.0,0.00018082,2]
[398538475,1765810248921,-677.985224,0.00018082,2]
[398538476,1765810248930,-326.057867,0.00018082,2]
[398538477,1765810248942,-677.985224,0.00018082,2]
[398538478,1765810248952,-326.057867,0.00018082,2]
[398538479,1765810248962,-399.308384,0.00018082,2]
[398538480,1765810248972,-681.380871,0.00018082,2]
[398538481,1765810248982,-151.0,0.00018082,2]
[398538482,1765810248992,-399.308384,0.00018082,2]
[398538483,1765810249003,-677.985224,0.00018082,2]
[398538484,1765810249012,-681.380871,0.00018082,2]
[398538485,1765810249022,-158.266888,0.00018082,2]
[398538486,1765810249032,-182.039087,0.00018082,2]
[398538487,1765810249042,-399.308384,0.00018082,2]
[398538488,1765810249051,-399.308384,0.00018082,2]
[398538489,1765810249060,-182.039087,0.00018082,2]
[398538490,1765810249069,-681.380871,0.00018082,2]
[398538491,1765810249079,-681.380871,0.00018082,2]